bitfinex-derivatives/quotes_BTCF0:USTF0_20260315
["timestamp","ask_amount","ask_price","bid_price","bid_amount"]
[1773575290427,0.041739,71864.0,71853.0,0.0014]
[1773575290816,0.041739,71864.0,71854.0,0.0014]
[1773575291918,0.041738,71865.0,71855.0,0.06874349]
[1773575293920,0.041739,71864.0,71855.0,0.06874349]
[1773575299236,0.03566586,71875.0,71854.0,0.0014]
[1773575299930,0.03486776,71879.0,71855.0,0.0014]
[1773575300129,0.03486776,71879.0,71841.0,0.16663935]
[1773575300130,0.041743,71857.0,71856.0,0.0014]
[1773575300329,0.03486776,71866.0,71843.0,0.06874349]
[1773575300535,0.03486776,71866.0,71844.0,0.0014]
[1773575300728,0.03486776,71866.0,71844.0,0.07014349]
[1773575301332,0.041744,71855.0,71844.0,0.07014349]
[1773575304044,0.041743,71857.0,71845.0,0.06482655]
[1773575304426,0.041742,71859.0,71847.0,0.041748]
[1773575304636,0.041743,71858.0,71846.0,0.06482655]
[1773575304835,0.041743,71857.0,71846.0,0.06482655]
[1773575305032,0.03485845,71872.0,71846.0,0.06482655]
[1773575305033,0.041744,71856.0,71846.0,0.06482655]
[1773575305230,0.03485845,71872.0,71839.0,0.06482655]
[1773575305231,0.03280885,71868.0,71839.0,0.06482655]
[1773575305433,0.03280885,71862.0,71840.0,0.06482655]
[1773575305631,0.041747,71851.0,71841.0,0.0014]
[1773575306028,0.041747,71851.0,71841.0,0.06622655]
[1773575306234,0.041745,71853.0,71841.0,0.06622655]
[1773575307037,0.041745,71853.0,71842.0,0.0014]
[1773575307242,0.041746,71852.0,71842.0,0.0014]
[1773575307644,0.041747,71851.0,71842.0,0.0014]
[1773575307938,0.041747,71851.0,71843.0,0.0014]
[1773575309744,0.03143438,71864.0,71844.0,0.0014]
[1773575309938,0.03143438,71864.0,71837.0,0.10658055]
[1773575310345,0.04175,71845.0,71832.0,0.041757]
[1773575310546,0.03143438,71858.0,71833.0,0.06622655]
[1773575311237,0.041751,71843.0,71833.0,0.06622655]
[1773575311634,0.041752,71842.0,71833.0,0.06622655]
[1773575315244,0.03143438,71858.0,71833.0,0.06622655]
[1773575315245,0.041751,71844.0,71833.0,0.06622655]
[1773575315439,0.03143438,71858.0,71833.0,0.06622655]
[1773575315640,0.041752,71842.0,71833.0,0.06622655]
[1773575318341,0.041752,71842.0,71833.0,0.06553028]
[1773575319845,0.041752,71842.0,71834.0,0.0014]
[1773575320637,0.041752,71842.0,71834.0,0.06622655]
[1773575321237,0.0342374,71854.0,71829.0,0.06482655]
[1773575321448,0.041753,71840.0,71830.0,0.0014]
[1773575321946,0.041753,71840.0,71830.0,0.06622655]
[1773575322146,0.041754,71839.0,71830.0,0.06622655]
[1773575326752,0.0342374,71850.0,71830.0,0.06622655]
[1773575326753,0.041754,71838.0,71830.0,0.06622655]
[1773575327049,0.041755,71836.0,71831.0,0.0014]
[1773575327351,0.041755,71836.0,71832.0,0.0014]
[1773575327652,0.041755,71836.0,71826.0,0.06482655]
[1773575327857,0.041754,71839.0,71827.0,0.06622655]
[1773575328053,0.041754,71839.0,71830.0,0.001]
[1773575328251,0.0342374,71850.0,71831.0,0.0014]
[1773575328747,0.0342374,71850.0,71832.0,0.001]
[1773575329452,0.041753,71839.0,71832.0,0.001]
[1773575329853,0.041754,71838.0,71832.0,0.001]
[1773575330249,0.041754,71838.0,71831.0,0.0014]
[1773575337553,0.041753,71840.0,71831.0,0.06552928]
[1773575345762,0.02074132,71863.0,71839.0,0.06412928]
[1773575345961,0.041747,71851.0,71841.0,0.06412928]
[1773575346166,0.041747,71851.0,71843.0,0.06412928]
[1773575346857,0.041744,71855.0,71844.0,0.06412928]
[1773575348563,0.041745,71853.0,71844.0,0.06412928]
[1773575350263,0.001,71863.0,71844.0,0.06412928]
[1773575350462,0.041744,71855.0,71844.0,0.06412928]
[1773575350771,0.041745,71854.0,71844.0,0.06412928]
[1773575353071,0.02074132,71867.0,71844.0,0.06412928]
[1773575353569,0.0202974,71864.0,71845.0,0.0014]
[1773575355070,0.041747,71850.0,71845.0,0.0014]
[1773575355471,0.041748,71849.0,71845.0,0.0014]
[1773575356777,0.041749,71847.0,71846.0,0.0014]
[1773575358367,0.041748,71849.0,71846.0,0.0014]
[1773575358569,0.041748,71849.0,71847.0,0.0014]
[1773575358768,0.041748,71849.0,71839.0,0.06412928]
[1773575358769,0.041748,71849.0,71848.0,0.0014]
[1773575358971,0.041747,71850.0,71848.0,0.0014]
[1773575361374,0.041747,71850.0,71849.0,0.0014]
[1773575362173,0.041747,71850.0,71843.0,0.06412928]
[1773575362371,0.041747,71850.0,71844.0,0.0014]
[1773575363778,0.041738,71865.0,71844.0,0.060383]
[1773575363978,0.041747,71851.0,71844.0,0.060383]
[1773575364472,0.041738,71865.0,71845.0,0.0014]
[1773575364473,0.01637859,71860.0,71845.0,0.0014]
[1773575364672,0.01637859,71860.0,71846.0,0.0014]
[1773575364879,0.01637859,71860.0,71847.0,0.0014]
[1773575365068,0.041749,71847.0,71837.0,0.058983]
[1773575365268,0.041749,71847.0,71838.0,0.06037996]
[1773575365472,0.041749,71847.0,71839.0,0.0014]
[1773575366173,0.041749,71847.0,71839.0,0.06027008]
[1773575369378,0.041748,71849.0,71839.0,0.06027008]
[1773575375684,0.041748,71848.0,71839.0,0.06027008]
[1773575383492,0.01637859,71860.0,71839.0,0.06027008]
[1773575383697,0.01637859,71860.0,71827.0,0.16658669]
[1773575383698,0.04175,71845.0,71840.0,0.0014]
[1773575383898,0.04175,71845.0,71841.0,0.0014]
[1773575384086,0.04175,71845.0,71842.0,0.0014]
[1773575384287,0.04175,71845.0,71843.0,0.0014]
[1773575384483,0.04175,71845.0,71844.0,0.0014]
[1773575387097,0.04175,71845.0,71836.0,0.05887008]
[1773575387299,0.04175,71845.0,71837.0,0.06027008]
[1773575391199,0.041751,71844.0,71837.0,0.06027008]
[1773575392095,0.05937151,71858.0,71838.0,0.0014]
[1773575392297,0.05937151,71851.0,71829.0,0.05596545]
[1773575392503,0.041754,71838.0,71830.0,0.0014]
[1773575392802,0.041755,71837.0,71829.0,0.05596545]
[1773575392994,0.041755,71837.0,71830.0,0.0014]
[1773575393503,0.05937151,71849.0,71831.0,0.0014]
[1773575393996,0.05937151,71849.0,71825.0,0.05596545]
[1773575394203,0.05937151,71849.0,71826.0,0.0014]
[1773575395100,0.041755,71836.0,71826.0,0.0014]
[1773575395495,0.041755,71836.0,71825.0,0.05596545]
[1773575395695,0.041756,71835.0,71827.0,0.0014]
[1773575396205,0.041755,71837.0,71827.0,0.0014]
[1773575396401,0.041754,71839.0,71827.0,0.0014]
[1773575397403,0.041754,71839.0,71827.0,0.05736545]
[1773575397707,0.041754,71838.0,71827.0,0.05736545]
[1773575399304,0.041754,71838.0,71827.0,0.05596545]
[1773575399507,0.041754,71838.0,71828.0,0.0014]
[1773575401201,0.041754,71838.0,71828.0,0.05736545]
[1773575401402,0.05937151,71850.0,71828.0,0.05736545]
[1773575403101,0.041755,71837.0,71828.0,0.05736545]
[1773575408612,0.06049785,71851.0,71828.0,0.05736545]
[1773575409213,0.05865283,71850.0,71828.0,0.05736545]
[1773575409813,0.06005283,71850.0,71828.0,0.05736545]
[1773575411011,0.041754,71838.0,71828.0,0.05736545]
[1773575415513,0.041748,71849.0,71839.0,0.05596545]
[1773575415705,0.0014,71864.0,71841.0,0.05596545]
[1773575416705,0.041748,71849.0,71841.0,0.05596545]
[1773575417105,0.0024,71864.0,71841.0,0.05596545]
[1773575418407,0.0014,71864.0,71841.0,0.05596545]
[1773575419008,0.0024,71864.0,71841.0,0.05596545]
[1773575419415,0.001,71864.0,71841.0,0.05596545]
[1773575419607,0.041747,71851.0,71841.0,0.05596545]
[1773575419807,0.041747,71850.0,71841.0,0.05596545]
[1773575422314,0.0014,71872.0,71842.0,0.041751]
[1773575422616,0.05488862,71872.0,71844.0,0.05495255]
[1773575422818,0.05628862,71871.0,71844.0,0.05495255]
[1773575423503,0.05488862,71871.0,71844.0,0.05495255]
[1773575423709,0.05628862,71870.0,71844.0,0.05495255]
[1773575424117,0.041743,71857.0,71844.0,0.05495255]
[1773575426009,0.041743,71857.0,71841.0,0.05495255]
[1773575426211,0.05628862,71870.0,71846.0,0.05495255]
[1773575426515,0.05628862,71870.0,71845.0,0.041749]
[1773575426516,0.05628862,71870.0,71848.0,0.05495255]
[1773575426916,0.041739,71864.0,71848.0,0.05495255]
[1773575427107,0.041739,71864.0,71852.0,0.05495255]
[1773575429922,0.04174,71863.0,71852.0,0.05495255]
[1773575432416,0.05488862,71875.0,71852.0,0.05495255]
[1773575434023,0.04174,71862.0,71852.0,0.05495255]
[1773575438433,0.05558421,71881.0,71859.0,0.05495255]
[1773575438633,0.05558421,71881.0,71860.0,0.0014]
[1773575438634,0.041737,71868.0,71860.0,0.0014]
[1773575445037,0.041735,71870.0,71860.0,0.0014]
[1773575445234,0.041735,71871.0,71861.0,0.05495255]
[1773575446827,0.041735,71870.0,71861.0,0.05495255]
[1773575449840,0.05558421,71881.0,71861.0,0.05495255]
[1773575450832,0.00624449,71869.0,71861.0,0.05495255]
[1773575451037,0.05558421,71881.0,71861.0,0.05495255]
[1773575451232,0.05658421,71881.0,71861.0,0.05495255]
[1773575451431,0.041735,71870.0,71861.0,0.05495255]
[1773575452535,0.05658421,71881.0,71861.0,0.05495255]
[1773575452735,0.041735,71871.0,71861.0,0.05495255]
[1773575456943,0.041736,71870.0,71861.0,0.05495255]
[1773575463451,0.05558421,71881.0,71861.0,0.05495255]
[1773575464050,0.041735,71870.0,71861.0,0.05495255]
[1773575464750,0.41495711,71904.0,71860.0,0.0014]
[1773575464751,0.41495711,71917.0,71864.0,0.05335418]
[1773575464949,0.05633672,71935.0,71886.0,0.041726]
[1773575465148,0.041691,71947.0,71887.0,0.0014]
[1773575465149,0.041718,71901.0,71887.0,0.0014]
[1773575465350,0.05633672,71918.0,71889.0,0.041724]
[1773575465544,0.041713,71909.0,71895.0,0.05335418]
[1773575465852,0.041711,71911.0,71897.0,0.05335418]
[1773575466050,0.04171,71914.0,71898.0,0.05335418]
[1773575466252,0.041711,71913.0,71898.0,0.05335418]
[1773575466853,0.041709,71915.0,71898.0,0.05335418]
[1773575467053,0.04670568,71917.0,71897.0,0.05335418]
[1773575467256,0.041709,71916.0,71900.0,0.05335418]
[1773575467451,0.08841468,71916.0,71900.0,0.05335418]
[1773575467657,0.04171,71914.0,71900.0,0.05335418]
[1773575467957,0.04670568,71916.0,71900.0,0.05335418]
[1773575468152,0.041709,71915.0,71900.0,0.05335418]
[1773575468554,0.04171,71913.0,71900.0,0.05335418]
[1773575472353,0.041709,71916.0,71900.0,0.05335418]
[1773575473063,0.04670568,71915.0,71900.0,0.05335418]
[1773575476165,0.041706,71922.0,71906.0,0.05335418]
[1773575476365,0.05773672,71932.0,71907.0,0.05475418]
[1773575476563,0.041706,71922.0,71909.0,0.05335418]
[1773575478462,0.041708,71918.0,71908.0,0.0014]
[1773575478668,0.05633672,71926.0,71898.0,0.041719]
[1773575478967,0.05633672,71926.0,71899.0,0.05475418]
[1773575479362,0.041708,71917.0,71900.0,0.041717]
[1773575479666,0.05633672,71927.0,71905.0,0.041715]
[1773575479862,0.041707,71919.0,71906.0,0.0014]
[1773575480567,0.041708,71918.0,71906.0,0.0014]
[1773575480956,0.041708,71918.0,71906.0,0.05475418]
[1773575491273,0.0014,71931.0,71906.0,0.05475418]
[1773575491976,0.041708,71918.0,71906.0,0.05475418]
[1773575492872,0.041708,71918.0,71907.0,0.05478537]
[1773575493376,0.041708,71918.0,71909.0,0.05478537]
[1773575494274,0.041708,71918.0,71910.0,0.33620201]
[1773575494478,0.041708,71918.0,71911.0,0.33620201]
[1773575494674,0.041708,71918.0,71912.0,0.28141664]
[1773575494874,0.041708,71918.0,71913.0,0.0014]
[1773575496680,0.041708,71918.0,71913.0,0.05618537]
[1773575497071,0.05627407,71931.0,71913.0,0.05618537]
[1773575497272,0.041707,71918.0,71913.0,0.05618537]
[1773575497767,0.041707,71918.0,71913.0,0.0014]
[1773575498981,0.041707,71918.0,71913.0,0.05618537]
[1773575499880,0.041707,71918.0,71913.0,0.0014]
[1773575501583,0.041707,71918.0,71913.0,0.05618537]
[1773575502176,0.041707,71918.0,71913.0,0.0014]
[1773575503181,0.041706,71920.0,71913.0,0.0014]
[1773575503487,0.041707,71919.0,71913.0,0.0014]
[1773575503780,0.41495711,71946.0,71913.0,0.0014]
[1773575503781,0.45664811,71947.0,71913.0,0.05618537]
[1773575503983,0.041701,71929.0,71916.0,0.041708]
[1773575504284,0.05487407,71938.0,71917.0,0.27742825]
[1773575504482,0.05487407,71938.0,71916.0,0.041708]
[1773575504787,0.05487407,71938.0,71917.0,0.27874881]
[1773575504788,0.041702,71927.0,71917.0,0.27874881]
[1773575505084,0.041702,71927.0,71917.0,0.0014]
[1773575505387,0.041702,71928.0,71917.0,0.043108]
[1773575505584,0.041702,71928.0,71918.0,0.0014]
[1773575506086,0.041701,71930.0,71918.0,0.0014]
[1773575506387,0.041701,71929.0,71919.0,0.0014]
[1773575506683,0.0417,71931.0,71920.0,0.0014]
[1773575507088,0.0417,71931.0,71921.0,0.0014]
[1773575507276,0.0417,71931.0,71919.0,0.041707]
[1773575507585,0.0417,71931.0,71922.0,0.0014]
[1773575507783,0.0417,71931.0,71919.0,0.09649237]
[1773575507993,0.0417,71931.0,71923.0,0.0014]
[1773575508390,0.0417,71931.0,71920.0,0.05478537]
[1773575508589,0.0417,71931.0,71921.0,0.0014]
[1773575510087,0.0417,71931.0,71922.0,0.05478537]
[1773575511779,0.043091,71947.0,71912.0,0.041711]
[1773575511780,0.041703,71926.0,71912.0,0.041711]
[1773575511992,0.05162969,71925.0,71913.0,0.17601176]
[1773575512193,0.05162969,71925.0,71914.0,0.0014]
[1773575512383,0.05162969,71925.0,71916.0,0.040308]
[1773575512578,0.05162969,71925.0,71917.0,0.0014]
[1773575512980,0.05162969,71925.0,71916.0,0.040308]
[1773575513178,0.05162969,71925.0,71905.0,0.21863392]
[1773575513179,0.05162969,71925.0,71918.0,0.0014]
[1773575513387,0.05162969,71925.0,71919.0,0.0014]
[1773575513877,0.05162969,71925.0,71920.0,0.0014]
[1773575514082,0.05162969,71938.0,71914.0,0.04171]
[1773575514281,0.05162969,71938.0,71915.0,0.0014]
[1773575514482,0.05162969,71938.0,71916.0,0.0014]
[1773575514891,0.05162969,71938.0,71914.0,0.04171]
[1773575515078,0.05162969,71929.0,71917.0,0.0014]
[1773575515506,0.05162969,71929.0,71914.0,0.04171]
[1773575515690,0.05162969,71929.0,71918.0,0.0014]
[1773575515889,0.05162969,71929.0,71919.0,0.0014]
[1773575516096,0.05162969,71929.0,71920.0,0.0014]
[1773575516299,0.041701,71929.0,71915.0,0.041709]
[1773575516590,0.041701,71929.0,71916.0,0.0014]
[1773575517189,0.041701,71929.0,71915.0,0.041709]
[1773575517388,0.041701,71929.0,71917.0,0.0014]
[1773575517789,0.041701,71929.0,71918.0,0.0014]
[1773575518294,0.05162969,71933.0,71919.0,0.0014]
[1773575518487,0.05162969,71938.0,71919.0,0.0014]
[1773575518793,0.05602003,71939.0,71905.0,0.16658669]
[1773575518794,0.041701,71929.0,71920.0,0.0014]
[1773575518998,0.041701,71929.0,71916.0,0.041708]
[1773575519296,0.05162969,71945.0,71921.0,0.05204723]
[1773575519494,0.05162969,71945.0,71919.0,0.041706]
[1773575519495,0.05162969,71945.0,71923.0,0.05204723]
[1773575520496,0.0417,71931.0,71923.0,0.05204723]
[1773575520790,0.05162969,71936.0,71917.0,0.041708]
[1773575520986,0.05162969,71926.0,71918.0,0.0014]
[1773575521191,0.05162969,71926.0,71919.0,0.0014]
[1773575521391,0.05162969,71926.0,71920.0,0.0014]
[1773575521587,0.05162969,71926.0,71921.0,0.0014]
[1773575521794,0.05162969,71926.0,71915.0,0.041709]
[1773575522092,0.05162969,71926.0,71916.0,0.0014]
[1773575522292,0.05162969,71926.0,71905.0,0.05204723]
[1773575522293,0.05162969,71926.0,71917.0,0.0014]
[1773575522496,0.05162969,71926.0,71914.0,0.041709]
[1773575522697,0.041704,71925.0,71918.0,0.0014]
[1773575523005,0.05162969,71926.0,71914.0,0.041709]
[1773575523194,0.041703,71927.0,71915.0,0.0014]
[1773575523597,0.041703,71926.0,71915.0,0.0014]
[1773575523798,0.041703,71926.0,71916.0,0.0014]
[1773575524499,0.041704,71925.0,71917.0,0.0014]
[1773575524698,0.041704,71925.0,71918.0,0.0014]
[1773575524898,0.041704,71925.0,71912.0,0.041711]
[1773575525101,0.041704,71924.0,71913.0,0.27151428]
[1773575525296,0.041704,71924.0,71914.0,0.27011428]
[1773575525598,0.041704,71924.0,71914.0,0.0014]
[1773575525797,0.041704,71924.0,71915.0,0.0014]
[1773575526197,0.05162969,71930.0,71904.0,0.05204723]
[1773575526398,0.041706,71921.0,71905.0,0.2715398]
[1773575526599,0.041706,71921.0,71906.0,0.2701398]
[1773575526801,0.041706,71921.0,71907.0,0.2701398]
[1773575527102,0.041706,71921.0,71908.0,0.2715398]
[1773575527405,0.041706,71921.0,71910.0,0.041712]
[1773575527702,0.041705,71922.0,71911.0,0.17353036]
[1773575528000,0.041705,71922.0,71912.0,0.0014]
[1773575528396,0.041705,71922.0,71913.0,0.0014]
[1773575528697,0.041705,71922.0,71910.0,0.041712]
[1773575528698,0.05162969,71925.0,71902.0,0.05204723]
[1773575528895,0.05162969,71925.0,71887.0,0.30966453]
[1773575528896,0.041708,71917.0,71903.0,0.0014]
[1773575529095,0.041708,71917.0,71904.0,0.0014]
[1773575529399,0.041708,71917.0,71905.0,0.041715]
[1773575529598,0.041709,71915.0,71904.0,0.0014]
[1773575529791,0.041712,71911.0,71899.0,0.041718]
[1773575529992,0.041711,71913.0,71900.0,0.0014]
[1773575530400,0.04171,71914.0,71900.0,0.0014]
[1773575530702,0.041697,71936.0,71899.0,0.041718]
[1773575530703,0.05162969,71924.0,71899.0,0.041718]
[1773575530902,0.05302969,71924.0,71900.0,0.0014]
[1773575531101,0.041715,71905.0,71900.0,0.0014]
[1773575531302,0.05162969,71902.0,71898.0,0.0014]
[1773575531602,0.05162969,71899.0,71898.0,0.0014]
[1773575531900,0.04172,71897.0,71881.0,0.16658669]
[1773575532104,0.04172,71897.0,71882.0,0.0014]
[1773575532502,0.041721,71895.0,71881.0,0.041729]
[1773575532708,0.041721,71895.0,71882.0,0.043128]
[1773575533008,0.05162969,71897.0,71883.0,0.0014]
[1773575533310,0.05162969,71897.0,71884.0,0.0014]
[1773575533492,0.05162969,71897.0,71885.0,0.0014]
[1773575533696,0.041724,71889.0,71886.0,0.0014]
[1773575533992,0.041724,71889.0,71875.0,0.05204723]
[1773575534191,0.041724,71889.0,71876.0,0.0014]
[1773575534399,0.041725,71887.0,71876.0,0.0014]
[1773575536407,0.05162969,71888.0,71873.0,0.0014]
[1773575536701,0.041729,71881.0,71873.0,0.0014]
[1773575536893,0.04173,71880.0,71873.0,0.0014]
[1773575537700,0.04173,71879.0,71873.0,0.0014]
[1773575540502,0.04173,71879.0,71873.0,0.0024]
[1773575543212,0.04173,71879.0,71873.0,0.0014]
[1773575545015,0.041729,71881.0,71873.0,0.0014]
[1773575547512,0.041727,71884.0,71873.0,0.0014]
[1773575547708,0.0014,71902.0,71880.0,0.05278474]
[1773575548017,0.041723,71892.0,71881.0,0.0014]
[1773575549514,0.041723,71892.0,71881.0,0.05418474]
[1773575550315,0.05639817,71905.0,71881.0,0.05418474]
[1773575550814,0.05779817,71905.0,71881.0,0.05418474]
[1773575551117,0.05639817,71905.0,71881.0,0.05418474]
[1773575551317,0.041723,71892.0,71881.0,0.05418474]
[1773575552415,0.041722,71894.0,71881.0,0.05418474]
[1773575552716,0.041722,71894.0,71881.0,0.09591374]
[1773575553521,0.041722,71893.0,71881.0,0.09591374]
[1773575554308,0.041722,71893.0,71882.0,0.05278474]
[1773575556514,0.05639817,71907.0,71889.0,0.041724]
[1773575556720,0.05639817,71907.0,71890.0,0.0014]
[1773575556925,0.041718,71901.0,71890.0,0.0014]
[1773575557116,0.041718,71900.0,71890.0,0.0014]
[1773575559117,0.041719,71899.0,71890.0,0.0014]
[1773575559323,0.06359133,71909.0,71890.0,0.0014]
[1773575559514,0.041726,71887.0,71874.0,0.041733]
[1773575559820,0.041726,71887.0,71875.0,0.0014]
[1773575560223,0.041726,71887.0,71874.0,0.041733]
[1773575560419,0.041726,71887.0,71875.0,0.043132]
[1773575560820,0.041726,71887.0,71876.0,0.0014]
[1773575561820,0.041725,71889.0,71877.0,0.0014]
[1773575562210,0.041725,71889.0,71876.0,0.041731]
[1773575562416,0.041724,71890.0,71878.0,0.04173]
[1773575562616,0.041724,71890.0,71879.0,0.0014]
[1773575562922,0.041724,71890.0,71880.0,0.0014]
[1773575563814,0.041724,71889.0,71880.0,0.0014]
[1773575564015,0.041725,71888.0,71881.0,0.0014]
[1773575564315,0.041725,71888.0,71882.0,0.0014]
[1773575564510,0.041725,71888.0,71883.0,0.0014]
[1773575564717,0.041725,71888.0,71884.0,0.0014]
[1773575565015,0.041725,71888.0,71885.0,0.0014]
[1773575565217,0.041725,71888.0,71876.0,0.041731]
[1773575565420,0.041725,71888.0,71877.0,0.0014]
[1773575573730,0.041726,71886.0,71877.0,0.0014]
[1773575574127,0.041725,71888.0,71877.0,0.0014]
[1773575580739,0.041726,71887.0,71877.0,0.0014]
[1773575582726,0.041726,71887.0,71876.0,0.041731]
[1773575583046,0.041726,71887.0,71877.0,0.0014]
[1773575583227,0.041726,71887.0,71872.0,0.05278474]
[1773575583432,0.041726,71887.0,71873.0,0.0014]
[1773575583941,0.041726,71887.0,71875.0,0.041732]
[1773575590946,0.041726,71887.0,71875.0,0.20831869]
[1773575592743,0.041726,71887.0,71876.0,0.119]
[1773575595542,1.0,71888.0,71876.0,0.119]
[1773575595735,0.041727,71885.0,71875.0,0.16658669]
[1773575596139,1.0,71888.0,71875.0,0.16658669]
[1773575596140,0.041726,71887.0,71875.0,0.20831869]
[1773575602253,0.041726,71887.0,71875.0,0.26001981]
[1773575604552,0.041726,71887.0,71875.0,0.09343312]
[1773575605155,0.043226,71887.0,71875.0,0.09343312]
[1773575606248,0.043226,71887.0,71875.0,0.10360334]
[1773575607257,0.043226,71887.0,71876.0,0.05170112]
[1773575610355,0.043226,71887.0,71876.0,0.09343312]
[1773575611248,0.0015,71887.0,71876.0,0.09343312]
[1773575611558,0.0015,71887.0,71878.0,0.09343112]
[1773575612054,0.0015,71887.0,71878.0,0.05170112]
[1773575613958,1.0,71888.0,71878.0,0.05170112]
[1773575619060,8.8e-07,71877.0,71876.0,0.05170112]
[1773575619264,0.041725,71889.0,71877.0,0.041731]
[1773575620567,0.05040375,71897.0,71877.0,0.041731]
[1773575621965,0.041724,71889.0,71877.0,0.041731]
[1773575629564,0.041724,71889.0,71878.0,0.04173]
[1773575630869,0.041724,71889.0,71876.0,0.041731]
[1773575631058,0.041725,71888.0,71876.0,0.041731]
[1773575631259,0.041725,71888.0,71877.0,0.041731]
[1773575632263,0.041724,71890.0,71878.0,0.04173]
[1773575638074,0.041723,71892.0,71879.0,0.04173]
[1773575638370,0.041723,71892.0,71880.0,0.0014]
[1773575641470,0.041723,71891.0,71880.0,0.0014]
[1773575648273,0.06297853,71903.0,71880.0,0.06325521]
[1773575648472,0.04172,71897.0,71880.0,0.06325521]
[1773575648677,0.04172,71896.0,71884.0,0.041727]
[1773575653576,0.041719,71898.0,71880.0,0.06325521]
[1773575654872,0.041719,71898.0,71887.0,0.041725]
[1773575655063,0.041719,71898.0,71888.0,0.0014]
[1773575655673,0.041718,71900.0,71888.0,0.0014]
[1773575656077,0.041719,71899.0,71888.0,0.0014]
[1773575657279,0.041719,71899.0,71888.0,0.043125]
[1773575658174,0.041718,71901.0,71888.0,0.043125]
[1773575658381,0.041718,71901.0,71890.0,0.041723]
[1773575659280,0.06297853,71906.0,71888.0,0.06325521]
[1773575659877,0.06297853,71906.0,71889.0,0.043124]
[1773575660071,0.06297853,71906.0,71890.0,0.0014]
[1773575661079,0.041717,71902.0,71890.0,0.0014]
[1773575662279,0.4174873,71924.0,71892.0,0.05477051]
[1773575662583,0.04171,71914.0,71901.0,0.041717]
[1773575662782,0.04171,71914.0,71902.0,0.0014]
[1773575662972,0.10148258,71914.0,71902.0,0.0014]
[1773575664881,0.041711,71913.0,71902.0,0.0014]
[1773575666179,0.10148358,71913.0,71902.0,0.0014]
[1773575671381,0.10148358,71913.0,71902.0,0.043116]
[1773575671382,0.05977258,71913.0,71902.0,0.043116]
[1773575673888,0.10148358,71913.0,71902.0,0.0014]
[1773575674387,0.05977258,71913.0,71902.0,0.0014]
[1773575674589,0.05977258,71903.0,71879.0,0.16641618]
[1773575674782,0.05977258,71903.0,71880.0,0.0014]
[1773575674982,0.05977258,71903.0,71893.0,0.041722]
[1773575675289,0.05977258,71903.0,71894.0,0.043121]
[1773575675587,0.05977258,71903.0,71895.0,0.0014]
[1773575676087,0.05977258,71903.0,71896.0,0.0014]
[1773575676287,0.05977258,71903.0,71897.0,0.0014]
[1773575676788,0.041717,71902.0,71896.0,0.0014]
[1773575678993,0.041717,71902.0,71876.0,0.12377897]
[1773575678994,0.05977258,71894.0,71883.0,0.041727]
[1773575679194,0.05977258,71894.0,71884.0,0.0014]
[1773575679585,0.05977258,71894.0,71883.0,0.041727]
[1773575679795,0.05977258,71894.0,71884.0,0.0014]
[1773575680095,0.05977258,71894.0,71883.0,0.041727]
[1773575680295,0.05977258,71894.0,71884.0,0.0014]
[1773575680607,0.05977258,71894.0,71883.0,0.041727]
[1773575680897,0.05977258,71894.0,71884.0,0.0014]
[1773575681190,0.05977258,71894.0,71885.0,0.0014]
[1773575682995,0.041721,71895.0,71885.0,0.0014]
[1773575683488,0.05977258,71898.0,71883.0,0.0014]
[1773575683895,0.041723,71892.0,71880.0,0.041729]
[1773575684094,0.041723,71891.0,71881.0,0.0014]
[1773575684295,0.05977258,71904.0,71882.0,0.05617051]
[1773575684592,0.041715,71906.0,71893.0,0.041722]
[1773575684896,0.041715,71906.0,71894.0,0.0014]
[1773575685490,0.041715,71905.0,71894.0,0.0014]
[1773575687895,0.041715,71905.0,71894.0,0.043121]
[1773575688801,0.041715,71905.0,71894.0,0.0014]
[1773575690799,0.10148758,71905.0,71894.0,0.0014]
[1773575692807,0.05586391,71904.0,71894.0,0.0014]
[1773575695609,0.05586391,71904.0,71894.0,0.043121]
[1773575695804,0.041714,71907.0,71894.0,0.043121]
[1773575696301,0.041714,71907.0,71895.0,0.041721]
[1773575698299,0.05586391,71908.0,71894.0,0.0014]
[1773575698498,0.05586391,71919.0,71897.0,0.041719]
[1773575699103,0.05586391,71911.0,71898.0,0.041718]
[1773575699804,0.041712,71910.0,71898.0,0.041719]
[1773575700305,0.09757591,71910.0,71898.0,0.041719]
[1773575702398,0.041713,71909.0,71894.0,0.0014]
[1773575702601,0.05586391,71909.0,71889.0,0.041724]
[1773575702798,0.05586391,71902.0,71890.0,0.043123]
[1773575703000,0.05586391,71902.0,71891.0,0.0014]
[1773575703200,0.05586391,71902.0,71892.0,0.0014]
[1773575703603,0.05586391,71902.0,71890.0,0.041723]
[1773575703906,0.05586391,71902.0,71893.0,0.0014]
[1773575710312,0.041717,71901.0,71893.0,0.0014]
[1773575710502,0.09758091,71901.0,71894.0,0.0014]
[1773575710806,0.05586391,71901.0,71894.0,0.0014]
[1773575711203,0.05586391,71901.0,71893.0,0.0014]
[1773575711603,0.05586391,71901.0,71890.0,0.041723]
[1773575711803,0.05586391,71901.0,71891.0,0.0014]
[1773575712210,0.05586391,71901.0,71891.0,0.043123]
[1773575713715,0.041716,71903.0,71891.0,0.043123]
[1773575718406,0.05586391,71906.0,71891.0,0.0014]
[1773575718611,0.041717,71902.0,71889.0,0.041724]
[1773575718814,0.041717,71902.0,71892.0,0.0014]
[1773575719011,0.041717,71902.0,71893.0,0.0014]
[1773575719222,0.041717,71902.0,71894.0,0.0014]
[1773575723721,0.041716,71904.0,71894.0,0.0014]
[1773575726325,0.041716,71903.0,71894.0,0.0014]
[1773575728426,0.041716,71903.0,71892.0,0.041722]
[1773575728626,0.041716,71903.0,71893.0,0.0014]
[1773575730727,0.041716,71903.0,71894.0,0.0014]
[1773575734348,0.041715,71905.0,71894.0,0.0014]
[1773575734746,0.0514265,71904.0,71894.0,0.0014]
[1773575735146,0.041715,71905.0,71894.0,0.0014]
[1773575736249,0.041714,71907.0,71894.0,0.0014]
[1773575736950,0.041714,71907.0,71895.0,0.04172]
[1773575737150,0.041715,71906.0,71895.0,0.04172]